Workbook

Sheet tytuł
N2: następna
J8: W-1.1_413_311
D11: Ekonomiczny plan operacji
C16: Załącznik do wniosku o przyznanie pomocy dla działania 413 "Wdrażanie lokalnych strategii rozwoju" dla operacji, które odpowiadają warunkom przyznania pomocy w ramach działania 311 "Różnicowanie w kierunku działalności nierolniczej" w ramach Programu Rozwoju Obszarów Wiejskich na lata 2007 - 2013
C22: znak sprawy (wypełnia pracownik OR)
C23: UWAGA: 1. Niniejszy dokument nie jest wypełniany w częściach oznaczonych „*” w przypadku, gdy: - wartość kosztów kwalifikowalnych operacji nie przekracza 50.000 PLN bez względu na kategorię operacji, - operacja jest realizowana w związku z podjęciem lub rozwijaniem działalności polegającej na wynajmowaniu pokoi oraz sprzedaży posiłków domowych lub świadczeniu innych usług związanych z pobytem turystów w gospodarstwie rolnym. 2. W pozostałych przypadkach wnioskodawca wypełnia cały dokument.

Sheet ID
J1: następna
E3: EKONOMICZNY PLAN OPERACJI | L3: Rolnik
C4: I. IDENTYFIKACJA WNIOSKODAWCY | L4: Małżonek rolnika
L5: Domownik
C6: 1. | D6: Imię i nazwisko rolnika / małżonka rolnika / domownika
C8: 2. | D8: Numer identyfikacyjny | E8: 2.1. Producenta | G8: 2.2. NIP Wnioskodawcy
C11: II. CHARAKTERYSTYKA PLANOWANEJ OPERACJI
C12: II.1 INFORMACJE WSTĘPNE
C14: a) Lokalizacja operacji (miejsce realizacji inwestycji)
C15: województwo
C16: powiat
C17: gmina
C18: ulica / oznaczenie działki
C19: nr domu / nr lokalu
C20: miejscowość
C21: kod - pocztowy, poczta
C23: b) Rodzaj działalności objętej operacją
C24: Lp. | D24: Oznaczenie działalności | F24: Kod PKD | G24: Podejmowana | H24: Rozwijana
C25: 1 | L25: X
J26: 1 | L26: -
C27: II.2 OPIS OPERACJI
C28: a) Opis planowanej operacji (max 500 słów)

Sheet OPIS
A1: poprzednia | K1: następna | N1: X
N2: -
C3: II. CHARAKTERYSTYKA PLANOWANEJ OPERACJI | N3: bardzo dobry
C4: II.2.b) Posiadane zaplecze do prowadzenia działalności rolniczej i gospodarczej | N4: dobry
C5: Charakterystyka istniejących nieruchomości | D5: Rodzaj nieruchomości | E5: Powierzchnia/ Kubatura | F5: Posiadanie zależne | G5: Rok budowy | H5: Stan techniczny | I5: Zaplecze planowanej operacji | N5: średni
N6: zły
D7: Grunty: | E7: ha fizyczne | F7: x | G7: x | H7: x | I7: x
G8: x | H8: x | L8: 1
D9: Budynki/budowle: | E9: m2/m3 | F9: x | G9: x | H9: x | I9: x | L9: 2
L10: 3
C11: Posiadane maszyny/ urządzenia/pojazdy | D11: Nazwa i typ maszyny/ urządzenia/ pojazdu | F11: Posiadanie zależne | G11: Rok produkcji | H11: Stan techniczny | I11: Zaplecze planowanej operacji | L11: 4
L12: 5
C13: Inne elementy zaplecza | L13: 7
L14: 8

Sheet POTRZEBY
A1: poprzednia | L1: następna
C3: =+OPIS!C3 -> II. CHARAKTERYSTYKA PLANOWANEJ OPERACJI
C4: II.2.c) Analiza potrzeb i korzyści | M4: X
C5: 1. Wpływ planowanej operacji na liczbę miejsc pracy i dochód z działalności pozarolniczej. | M5: -
C6: Liczba planowanych do utworzenia stałych miejsc pracy | G6: Osoby | I6: Etaty
C7: Liczba planowanych do utworzenia sezonowych miejsc pracy
C8: Liczba planowanych do zachowania miejsc pracy | M8: wyższa
C9: Wzrost dochodu z działalności pozarolniczej | M9: niższa
C10: 2. Charakterystyka produktu i działania marketingowe | M10: równa
C11: Produkty / usługi, jakie będą oferowane w wyniku realizacji operacji.
C12: Lp. | D12: Produkt / usługa | G12: Poziom cen | I12: Produkt / usługa
I13: nowy | J13: kontynuacja
C14: 1
C15: Planowane akcje promocyjne firmy, produktu lub usługi. | M15: 1
C16: 3. Zestawienie zakresu rzeczowego operacji (opis zadań)
C17: Poz. zestawienia | D17: Nazwa dostawcy | E17: Marka, typ lub rodzaj | F17: Parametr (y) charakteryzujący przedmiot (przedział mocy lub wydajności itp.) | H17: Planowane wykorzystanie (%) | J17: Wartość Zadania [wybranej oferty (zł)]
H18: rok I | I18: rok docelowy | T18: =+SUM($T$19:$T$9999) -> 0
S19: 1 | T19: =+J19 -> 0
I20: RAZEM | J20: =+$T$18 -> 0 | M20: 2

Sheet Zakres rzeczowy
A1: poprzednia | L1: następna
C3: =+OPIS!C3 -> II. CHARAKTERYSTYKA PLANOWANEJ OPERACJI
C4: II.2.c) Analiza potrzeb i korzyści
C5: 3. Zestawienie zakresu rzeczowego operacji (opis zadań)
C6: Uzasadnienie wyboru oferty
C8: Wpływ zakresu rzeczowego operacji na zakładany poziom sprzedaży

Sheet PF1 ŚWiO
A1: poprzednia | S1: następna
C3: III. PROJEKCJA FINANSOWA
C4: III.1 ŚRODKI WŁASNE
C6: Roczny dochód netto gospodarstwa / przedsiębiorstwa, w tym: | K6: Rok poprzedni | L6: Rok bieżący | M6: Rok | N6: Rok | O6: Rok | P6: Rok | Q6: Rok
K7: =+L7-1 -> 2012 | L7: 2013 | M7: =L7+1 -> 2014 | N7: =M7+1 -> 2015 | O7: =N7+1 -> 2016 | P7: =O7+1 -> 2017 | Q7: =P7+1 -> 2018
D8: Z tytułu prowadzonej działalności rolniczej
D9: Z tytułu działalności pozarolniczej objętej operacją
D10: Z innych źródeł: | E10: 1. wynagrodzenia | U10: =SUM(U15:U246) -> 0 | V10: 0 | W10: 0 | X10: 0 | Y10: 0 | Z10: 0 | AA10: 0 | AB10: 0 | AC10: 0 | AD10: 0 | AE10: 0 | AF10: 0 | AG10: 0 | AH10: 0 | AI10: 0 | AJ10: 0 | AK10: 0 | AL10: 0 | AM10: 0 | AN10: 0 | AO10: 0 | AP10: 0
E11: 2. inna działalność pozarolnicza
E12: 3. świadczenia emerytalno - rentowe
E13: inne ……
C14: DOCHÓD RAZEM | K14: =SUM(K8:K13) -> 0 | L14: =SUM(L8:L13) -> 0 | M14: 0 | N14: 0 | O14: 0 | P14: 0 | Q14: 0
C15: Stan środków finansowych Wnioskodawcy na sfinansowanie operacji
C17: III.2. ŚRODKI OBCE NA SFINANSOWANIE OPERACJI
C19: Lp. | D19: Oznaczenie/numer umowy/ rodzaj zadłużenia (np. kredyt, pożyczka) | F19: Przedmiot / cel umowy | I19: Rok zaciągnięcia zobowiązań | J19: Kwota zadłużenia | K19: Wykorzystanie środków obcych do finansowania kosztów operacji w okresie realizacji operacji
K21: =+K6 -> Rok poprzedni | L21: Rok bieżący | M21: Rok | N21: Rok | O21: Rok | P21: Rok | Q21: Rok
K22: =+K7 -> 2012 | L22: =+L7 -> 2013 | M22: =M7 -> 2014 | N22: =M22+1 -> 2015 | O22: =N22+1 -> 2016 | P22: =O22+1 -> 2017 | Q22: =P22+1 -> 2018 | T22: 1
C23: 1 | U23: =J23 -> 0 | V23: 0 | W23: 0 | X23: 0 | Y23: 0 | Z23: 0 | AA23: 0 | AB23: 0
C24: RAZEM | J24: =U10 -> 0 | K24: 0 | L24: 0 | M24: 0 | N24: 0 | O24: 0 | P24: 0 | Q24: 0 | T24: 2
C25: Obsługa zadłużenia w kolejnych latach (kapitał + odsetki)
C26: Lp. | D26: =+K21 -> Rok poprzedni | F26: =+L21 -> Rok bieżący | H26: =+M21 -> Rok | J26: =+N21 -> Rok | L26: =+O21 -> Rok | N26: =+P21 -> Rok | P26: =+Q21 -> Rok
D27: =+K22 -> 2012 | F27: =+L22 -> 2013 | H27: =+M22 -> 2014 | J27: =+N22 -> 2015 | L27: =+O22 -> 2016 | N27: =+P22 -> 2017 | P27: =+Q22 -> 2018
D28: Kapitał | E28: Odsetki | F28: Kapitał | G28: Odsetki | H28: Kapitał | I28: Odsetki | J28: Kapitał | K28: Odsetki | L28: Kapitał | M28: Odsetki | N28: Kapitał | O28: Odsetki | P28: Kapitał | Q28: Odsetki | T28: 3
C29: 1 | AC29: =+D29 -> 0 | AD29: 0 | AE29: 0 | AF29: 0 | AG29: 0 | AH29: 0 | AI29: 0 | AJ29: 0 | AK29: 0 | AL29: 0 | AM29: 0 | AN29: 0 | AO29: 0 | AP29: 0
C30: RAZEM | D30: =+AC10 -> 0 | E30: =+AD10 -> 0 | F30: 0 | G30: 0 | H30: 0 | I30: 0 | J30: 0 | K30: 0 | L30: 0 | M30: 0 | N30: 0 | O30: 0 | P30: 0 | Q30: 0 | T30: 4

Sheet PF1 LEAS
A1: poprzednia | S1: następna
C3: III. PROJEKCJA FINANSOWA
C4: III.3. LEASING
U5: =+SUM(U10:U457) -> 0 | AC5: =+SUM(AC10:AC457) -> 0 | AD5: =+SUM(AD10:AD457) -> 0 | AE5: 0 | AF5: 0 | AG5: 0 | AH5: 0 | AI5: 0 | AJ5: 0 | AK5: 0 | AL5: 0 | AM5: 0 | AN5: 0
C6: Lp. | D6: Oznaczenie/numer promesy leasingowej | H6: Przedmiot promesy (umowy) leasingowej | N6: Planowany rok zaciągnięcia zobowiązań | P6: Planowana kwota zadłużenia
T9: 1
C10: 1 | U10: =+P10 -> 0
C11: RAZEM | P11: =+U5 -> 0 | T11: 2
C12: Obsługa zadłużenia w kolejnych latach (kapitał + odsetki)
C13: Lp. | D13: Rok bieżący | H13: Rok | J13: =+H13 -> Rok | L13: =+J13 -> Rok | N13: =+L13 -> Rok | P13: =+N13 -> Rok
D14: =+'PF1 ŚWiO'!L7 -> 2013 | H14: =+D14+1 -> 2014 | J14: =+H14+1 -> 2015 | L14: =+J14+1 -> 2016 | N14: =+L14+1 -> 2017 | P14: =+N14+1 -> 2018
D15: Kapitał | F15: Odsetki | H15: Kapitał | I15: Odsetki | J15: Kapitał | K15: Odsetki | L15: Kapitał | M15: Odsetki | N15: Kapitał | O15: Odsetki | P15: Kapitał | Q15: Odsetki | T15: 3
C16: 1 | AC16: =+D16 -> 0 | AD16: =+F16 -> 0 | AE16: =+H16 -> 0 | AF16: =+I16 -> 0 | AG16: 0 | AH16: 0 | AI16: 0 | AJ16: 0 | AK16: 0 | AL16: 0 | AM16: 0 | AN16: 0
C17: RAZEM | D17: =+AC5 -> 0 | F17: =+AD5 -> 0 | H17: =+AE5 -> 0 | I17: =+AF5 -> 0 | J17: 0 | K17: 0 | L17: 0 | M17: 0 | N17: 0 | O17: 0 | P17: 0 | Q17: 0 | T17: 4

Sheet PF1fin
A1: poprzednia | O1: następna
T2: =+SUM(W2:AF2) -> 0 | W2: =+W4*(0.08*(7-W3)) -> 0 | X2: =+X4*(0.08*(7-X3)) -> 0 | Y2: 0 | Z2: 0 | AA2: 0 | AB2: 0 | AC2: 0 | AD2: 0 | AE2: 0 | AF2: 0 | AG2: =+IF(I10-2007<0,0,AG7) -> 0 | AH2: =+IF(J10-2007<0,0,AH7) -> 0 | AI2: =+IF(K10-2007<0,0,AI7) -> 0 | AJ2: =+IF(L10-2007<0,0,AJ7) -> 0 | AK2: =+IF(M10-2007<0,0,AK7) -> 0
W3: =+I10-'PF1 ŚWiO'!$L$7+1 -> 1 | X3: =+J10-'PF1 ŚWiO'!$L$7+1 -> 2 | Y3: =+K10-'PF1 ŚWiO'!$L$7+1 -> 3 | Z3: =+L10-'PF1 ŚWiO'!$L$7+1 -> 4 | AA3: =+M10-'PF1 ŚWiO'!$L$7+1 -> 5 | AB3: =+W3 -> 1 | AC3: 2 | AD3: 3 | AE3: 4 | AF3: 5 | AG3: 1 | AH3: 2 | AI3: 3 | AJ3: 4 | AK3: 5
C4: III. PROJEKCJA FINANSOWA | T4: =+SUM(W4:AF4) -> 0 | W4: =+IF(W3>0,W7,0) -> 0 | X4: 0 | Y4: 0 | Z4: 0 | AA4: 0 | AB4: 0 | AC4: 0 | AD4: 0 | AE4: 0 | AF4: 0 | AG4: =+IF(AB3>1,AG2,SUM($AG$2:AG2)) -> 0 | AH4: =+IF(AC3>1,AH2,SUM($AG$2:AH2)) -> 0 | AI4: =+IF(AD3>1,AI2,SUM($AG$2:AI2)) -> 0 | AJ4: =+IF(AE3>1,AJ2,SUM($AG$2:AJ2)) -> 0 | AK4: =+IF(AF3>1,AK2,SUM($AG$2:AK2)) -> 0
C6: III.4 KOSZTY OPERACJI | T6: ki | U6: kl | V6: ko | W6: ki t1 | X6: ki t2 | Y6: ki t3 | Z6: ki t4 | AA6: ki t5 | AB6: kl t1 | AC6: kl t2 | AD6: kl t3 | AE6: kl t4 | AF6: kl t5 | AG6: ko t1 | AH6: ko t2 | AI6: ko t3 | AJ6: ko t4 | AK6: ko t5
C7: III.4.1 KOSZTY KWALIFIKOWALNE OPERACJI | T7: =+SUM(T8:T25) -> 0 | U7: 0 | V7: 0 | W7: 0 | X7: 0 | Y7: 0 | Z7: 0 | AA7: 0 | AB7: 0 | AC7: 0 | AD7: 0 | AE7: 0 | AF7: 0 | AG7: 0 | AH7: 0 | AI7: 0 | AJ7: 0 | AK7: 0
C9: Poz. Zestawienia | D9: Koszty inwestycyjne nie objęte leasingiem (Ki) | H9: Wartość PLN | I9: Planowany rok poniesienia kosztu
I10: =+'PF1 ŚWiO'!L7 -> 2013 | J10: =+I10+1 -> 2014 | K10: =+J10+1 -> 2015 | L10: =+K10+1 -> 2016 | M10: =+L10+1 -> 2017
H11: =I11+J11+K11+L11+M11 -> 0 | P11: 5 | T11: =+H11 -> 0 | W11: =+I11 -> 0 | X11: =+J11 -> 0 | Y11: =+K11 -> 0 | Z11: =+L11 -> 0 | AA11: =+M11 -> 0
C12: RAZEM | H12: =+T7 -> 0 | I12: =+W7 -> 0 | J12: =+X7 -> 0 | K12: =+Y7 -> 0 | L12: =+Z7 -> 0 | M12: =+AA7 -> 0 | P12: 3
C13: Koszty inwestycyjne objęte leasingiem (Kl)
H14: =I14+J14+K14+L14+M14 -> 0 | P14: 2 | U14: =+H14 -> 0 | AB14: =+I14 -> 0 | AC14: =+J14 -> 0 | AD14: =+K14 -> 0 | AE14: =+L14 -> 0 | AF14: =+M14 -> 0
C15: RAZEM | H15: =+U7 -> 0 | I15: =+AB7 -> 0 | J15: =+AC7 -> 0 | K15: =+AD7 -> 0 | L15: =+AE7 -> 0 | M15: =+AF7 -> 0 | P15: 1
C16: Koszty ogólne (Ko)
H17: =I17+J17+K17+L17+M17 -> 0 | P17: 8 | V17: =+H17 -> 0 | AG17: =+I17 -> 0 | AH17: =+J17 -> 0 | AI17: =+K17 -> 0 | AJ17: =+L17 -> 0 | AK17: =+M17 -> 0
C18: RAZEM | H18: =+V7 -> 0 | I18: =+AG7 -> 0 | J18: =+AH7 -> 0 | K18: =+AI7 -> 0 | L18: =+AJ7 -> 0 | M18: =+AK7 -> 0 | P18: 7
C19: Suma kosztów kwalifikowalnych operacji (Ki+Kl+Ko): | H19: =+SUM(T7:V7) -> 0 | I19: =+W7+AB7+AG7 -> 0 | J19: =+X7+AC7+AH7 -> 0 | K19: =+Y7+AD7+AI7 -> 0 | L19: =+Z7+AE7+AJ7 -> 0 | M19: =+AA7+AF7+AK7 -> 0
C22: III.4.2 Zestawienie zakresu towarzyszącego operacji - koszty niekwalifikowalne
C23: Lp. | D23: Nazwa zadania | F23: Parametry techniczne (m2, m3, moc, wydajność itp.) | H23: Wartość PLN | I23: Planowany rok poniesienia kosztu
I24: =I10 -> 2013 | J24: =I24+1 -> 2014 | K24: =J24+1 -> 2015 | L24: =K24+1 -> 2016 | M24: =L24+1 -> 2017 | P24: 10
H25: =SUM(I25:M25) -> 0
C26: Suma kosztów niekwalifikowalnych operacji | H26: =SUM(I26:M26) -> 0 | I26: =SUM(I24:I25)-I24 -> 0 | J26: =SUM(J24:J25)-J24 -> 0 | K26: =SUM(K24:K25)-K24 -> 0 | L26: =SUM(L24:L25)-L24 -> 0 | M26: =SUM(M24:M25)-M24 -> 0 | P26: 11

Sheet PF2
A1: poprzednia | K1: następna | O1: =M15 -> 16 | P1: I wiersz
O2: =M17 -> 17 | P2: II wiersz
B3: III. PROJEKCJA FINANSOWA | O3: =(O2-O1)-1 -> 0 | P3: count dodane
B4: III. 5 PLANOWANE PRZYCHODY I KOSZTY ZWIĄZANE Z OPERACJĄ | P4: 0
B5: III.5.1 PROGNOZA SPRZEDAŻY W WYNIKU REALIZACJI OPERACJI
B7: 1. Produkt/usługa Tabela ilościowa | C7: Jedn. sprzedaży | D7: Rok poprzedni | E7: Rok bieżący | F7: Rok | G7: Rok | H7: Rok | I7: Rok | J7: Rok
D8: =+E8-1 -> 2012 | E8: =+'PF1 ŚWiO'!L7 -> 2013 | F8: =+E8+1 -> 2014 | G8: =+F8+1 -> 2015 | H8: =+G8+1 -> 2016 | I8: =+H8+1 -> 2017 | J8: =+I8+1 -> 2018 | L8: 1
L10: 11
B11: 2. Produkt/usługa | C11: Cena w roku poprzednim | D11: Cena bazowa | E11: Uzasadnienie | L11: 2
B12: =+B9 -> 0
L13: 22
B14: 3. Produkt/usługa Tabela wartościowa | D14: Rok poprzedni | E14: Rok bieżący | F14: Rok | G14: Rok | H14: Rok | I14: Rok | J14: Rok
D15: =+D8 -> 2012 | E15: 2013 | F15: 2014 | G15: 2015 | H15: 2016 | I15: 2017 | J15: 2018 | L15: 3 | M15: =COUNTBLANK(M1:M14)+2 -> 16
B16: =B9 -> 0 | D16: 0 | E16: 0 | F16: 0 | G16: 0 | H16: 0 | I16: 0 | J16: 0 | M16: 1
B17: RAZEM | D17: =SUM(D15:D16)-D15 -> 0 | E17: 0 | F17: 0 | G17: 0 | H17: 0 | I17: 0 | J17: 0 | L17: 33 | M17: =SUM(M15:M16) -> 17
B19: III.5.2 KOSZTY DZIAŁALNOŚCI OBJĘTEJ OPERACJĄ
B21: Pozycja kosztów | D21: Rok poprzedni | E21: Rok bieżący | F21: Rok | G21: Rok | H21: Rok | I21: Rok | J21: Rok
D22: =+D15 -> 2012 | E22: 2013 | F22: 2014 | G22: 2015 | H22: 2016 | I22: 2017 | J22: 2018
B23: *amortyzacja
B24: zużycie materiałów i energii
B25: usługi obce (naprawy i konserwacje maszyn, budynków w tym czynsze)
B26: podatki i opłaty
B27: wynagrodzenia i pochodne
B28: koszty finansowe
B29: zakup towarów
B30: ubezpieczenia majątkowe
B31: pozostałe koszty
B32: RAZEM | D32: =SUM(D23:D31) -> 0 | E32: =SUM(E23:E31) -> 0 | F32: 0 | G32: 0 | H32: 0 | I32: 0 | J32: 0

Sheet PF3
A1: poprzednia
C3: III. PROJEKCJA FINANSOWA
C4: III.5.3 ZAKTUALIZOWANA WARTOŚĆ NETTO
C6: Specyfikacja | D6: Rok poprzedni | E6: Rok | F6: Rok | G6: Rok | H6: Rok | I6: Rok | J6: Rok
E7: bieżący | F7: =+'PF1 ŚWiO'!L7+1 -> 2014 | G7: =+F7+1 -> 2015 | H7: =+G7+1 -> 2016 | I7: =+H7+1 -> 2017 | J7: =+I7+1 -> 2018
D8: X | E8: N0 | F8: N1 | G8: N2 | H8: N3 | I8: N4 | J8: N5
C9: 1. Inwestycje dotyczące operacji | E9: =+SUMIF(PF1fin!W3:AK4,1,PF1fin!W4:AK4)+PF1fin!I26 -> 0 | F9: =+SUMIF(PF1fin!W3:AK4,2,PF1fin!W4:AK4)+PF1fin!J26 -> 0 | G9: =+SUMIF(PF1fin!W3:AK4,3,PF1fin!W4:AK4)+PF1fin!K26 -> 0 | H9: =+SUMIF(PF1fin!W3:AK4,4,PF1fin!W4:AK4)+PF1fin!L26 -> 0 | I9: =+SUMIF(PF1fin!W3:AK4,5,PF1fin!W4:AK4)+PF1fin!M26 -> 0 | J9: =+SUMIF(PF1fin!W3:AK4,6,PF1fin!W4:AK4) -> 0
C10: 2. Przychody ze sprzedaży (tab. III.5.1) | D10: =+'PF2'!D17 -> 0 | E10: =+'PF2'!E17 -> 0 | F10: =+'PF2'!F17 -> 0 | G10: =+'PF2'!G17 -> 0 | H10: =+'PF2'!H17 -> 0 | I10: =+'PF2'!I17 -> 0 | J10: =+'PF2'!J17 -> 0
C11: 3. Koszty działalności objętej operacją (tab. III.5.2) | D11: =+'PF2'!D32 -> 0 | E11: =+'PF2'!E32 -> 0 | F11: =+'PF2'!F32 -> 0 | G11: =+'PF2'!G32 -> 0 | H11: =+'PF2'!H32 -> 0 | I11: =+'PF2'!I32 -> 0 | J11: =+'PF2'!J32 -> 0
C12: 4. Dochód brutto | D12: =+D10-D11 -> 0 | E12: 0 | F12: 0 | G12: 0 | H12: 0 | I12: 0 | J12: 0
C13: *5. Podatek dochodowy, wg stopy: | E13: =IF(E12>0,E12*$C$14,0) -> 0 | F13: 0 | G13: 0 | H13: 0 | I13: 0 | J13: 0
C15: *6. Dochód netto | E15: =E12-E13 -> 0 | F15: 0 | G15: 0 | H15: 0 | I15: 0 | J15: 0
C16: *7. Wartość końcowa | J16: =PF1fin!H12+PF1fin!H15+PF1fin!H26-SUM(E17:J17) -> 0 | M16: =SUM('PF2'!E23:J23) -> 0 | N16: amort z tabeli
C17: *8. Amortyzacja | E17: ='PF2'!E23 -> 0 | F17: ='PF2'!F23 -> 0 | G17: ='PF2'!G23 -> 0 | H17: ='PF2'!H23 -> 0 | I17: ='PF2'!I23 -> 0 | J17: ='PF2'!J23 -> 0
C18: *9. Saldo bieżące | E18: =E15+E17-E9 -> 0 | F18: =F15+F17-F9 -> 0 | G18: =G15+G17-G9 -> 0 | H18: =H15+H17-H9 -> 0 | I18: =I15+I17-I9 -> 0 | J18: =J15+J17+J16-J9 -> 0 | M18: =+PF1fin!T2 -> 0 | N18: amort autom
C19: *10. Stopa dyskonta (5,80%) / czynnik dyskontujący | D19: X | E19: 1 | F19: =1/(1+$K20) -> 0.9451795841 | G19: =1/(1+$K20)^2 -> 0.8933644462 | H19: =1/(1+$K20)^3 -> 0.8443898358 | I19: =1/(1+$K20)^4 -> 0.7981000338 | J19: =1/(1+$K20)^5 -> 0.754347858 | K19: ='PF1 ŚWiO'!L7 -> 2013 | M19: =+PF1fin!T4 -> 0 | N19: suma kwalif
C20: *NPV | F20: =+SUMPRODUCT(E18:J18,E19:J19) -> 0 | K20: =IF(K19=2012,5.91%,IF(K19=2013,5.8%,"")) -> 0.058
C22: IV. DODATKOWE INFORMACJE
C40: ................................................................................................................. | F40: ......................................................................................
C41: miejscowość i data | F41: czytelny podpis

Sheet zal 1 PF2
B3: Załącznik 1. PROJEKCJA FINANSOWA OPARTA NA NOWYCH ROZWIĄZANIACH
B4: I. PLANOWANE PRZYCHODY I KOSZTY ZWIĄZANE Z OPERACJĄ OPARTĄ NA NOWYCH (OSZCZĘDNIEJSZYCH) ROZWIĄZANIACH
B5: I.1 PROGNOZA SPRZEDAŻY W WYNIKU REALIZACJI OPERACJI (OPARTEJ NA NOWYCH ROZWIĄZANIACH
B7: 1. Produkt/usługa Tabela ilościowa | C7: Jedn. sprzedaży | D7: Rok poprzedni | E7: Rok bieżący | F7: Rok | G7: Rok | H7: Rok | I7: Rok | J7: Rok
D8: =E8-1 -> 2012 | E8: ='PF1 ŚWiO'!L7 -> 2013 | F8: =E8+1 -> 2014 | G8: =F8+1 -> 2015 | H8: =G8+1 -> 2016 | I8: =H8+1 -> 2017 | J8: =I8+1 -> 2018 | L8: 1
L10: 11
B11: 2. Produkt/usługa | C11: Cena w roku poprzednim | D11: Cena bazowa | E11: Uzasadnienie | L11: 2
L13: 22
B14: 3. Produkt/usługa Tabela wartościowa | D14: Rok poprzedni | E14: Rok bieżący | F14: Rok | G14: Rok | H14: Rok | I14: Rok | J14: Rok
D15: =D8 -> 2012 | E15: =+E8 -> 2013 | F15: 2014 | G15: 2015 | H15: 2016 | I15: 2017 | J15: 2018 | L15: 3
B16: =B9 -> 0 | D16: =D9*C12 -> 0 | E16: =E9*D12 -> 0 | F16: =F9*D12 -> 0 | G16: =G9*D12 -> 0 | H16: =H9*D12 -> 0 | I16: =I9*D12 -> 0 | J16: =J9*D12 -> 0
B17: RAZEM | D17: =SUM(D15:D16)-D15 -> 0 | E17: 0 | F17: 0 | G17: 0 | H17: 0 | I17: 0 | J17: 0 | L17: 33
B19: I.2. KOSZTY DZIAŁALNOŚCI OBJĘTEJ OPERACJĄ OPARTĄ NA NOWYCH ROZWIĄZANICH
B21: Pozycja kosztów | D21: Rok poprzedni | E21: Rok bieżący | F21: Rok | G21: Rok | H21: Rok | I21: Rok | J21: Rok
D22: =+D15 -> 2012 | E22: 2013 | F22: 2014 | G22: 2015 | H22: 2016 | I22: 2017 | J22: 2018
B23: *amortyzacja
B24: zużycie materiałów i energii
B25: usługi obce (naprawy i konserwacje maszyn, budynków w tym czynsze)
B26: podatki i opłaty
B27: wynagrodzenia i pochodne
B28: koszty finansowe
B29: zakup towarów
B30: ubezpieczenia majątkowe
B31: pozostałe koszty
B32: RAZEM | D32: =SUM(D23:D31) -> 0 | E32: =SUM(E23:E31) -> 0 | F32: 0 | G32: 0 | H32: 0 | I32: 0 | J32: 0

Sheet zal 2 PF2
B3: Załącznik 2. PROJEKCJA FINANSOWA OPRTA NA OBECNYCH ROZWIĄZANIACH
B4: I. PLANOWANE PRZYCHODY I KOSZTY ZWIĄZANE Z OPERACJĄ OPARTA NA DOTYCHCZASOWYCH ROZWIĄZANICH
B5: I.1. PROGNOZA SPRZEDAŻY W WYNIKU REALIZACJI OPERACJI OPARTEJ NA DOTYCHCZASOWYCH ROZWIĄZANIACH
B7: 1. Produkt/usługa Tabela ilościowa | C7: Jedn. sprzedaży | D7: Rok poprzedni | E7: Rok bieżący | F7: Rok | G7: Rok | H7: Rok | I7: Rok | J7: Rok
D8: =E8-1 -> 2012 | E8: ='PF1 ŚWiO'!L7 -> 2013 | F8: =+E8+1 -> 2014 | G8: =+F8+1 -> 2015 | H8: =+G8+1 -> 2016 | I8: =+H8+1 -> 2017 | J8: =+I8+1 -> 2018 | L8: 1
L10: 11
B11: 2. Produkt/usługa | C11: Cena w roku poprzednim | D11: Cena bazowa | E11: Uzasadnienie | L11: 2
B12: =+B9 -> 0
L13: 22
B14: 3. Produkt/usługa Tabela wartościowa | D14: Rok poprzedni | E14: Rok bieżący | F14: Rok | G14: Rok | H14: Rok | I14: Rok | J14: Rok
D15: =+D8 -> 2012 | E15: 2013 | F15: 2014 | G15: 2015 | H15: 2016 | I15: 2017 | J15: 2018 | L15: 3
B16: =B9 -> 0 | D16: =D9*C12 -> 0 | E16: =E9*D12 -> 0 | F16: =F9*D12 -> 0 | G16: =G9*D12 -> 0 | H16: =H9*D12 -> 0 | I16: =I9*D12 -> 0 | J16: =J9*D12 -> 0
B17: RAZEM | D17: =SUM(D15:D16)-D15 -> 0 | E17: 0 | F17: 0 | G17: 0 | H17: 0 | I17: 0 | J17: 0 | L17: 33
B19: I.2. KOSZTY DZIAŁALNOŚCI OBJĘTEJ OPERACJĄ OPRTĄ NA DOTYCHCZASOWYCH ROZWIĄZANIACH
B21: Pozycja kosztów | D21: Rok poprzedni | E21: Rok bieżący | F21: Rok | G21: Rok | H21: Rok | I21: Rok | J21: Rok
D22: =+D15 -> 2012 | E22: 2013 | F22: 2014 | G22: 2015 | H22: 2016 | I22: 2017 | J22: 2018
B23: *amortyzacja
B24: zużycie materiałów i energii
B25: usługi obce (naprawy i konserwacje maszyn, budynków w tym czynsze)
B26: podatki i opłaty
B27: wynagrodzenia i pochodne
B28: koszty finansowe
B29: zakup towarów
B30: ubezpieczenia majątkowe
B31: pozostałe koszty
B32: RAZEM | D32: =SUM(D23:D31) -> 0 | E32: =SUM(E23:E31) -> 0 | F32: 0 | G32: 0 | H32: 0 | I32: 0 | J32: 0
